fUST/lending_fUST_20250423
["ID","MTS","AMOUNT","RATE_DAILY","PERIOD"]
[358663441,1745349042011,-2859.58,0.00025205,2]
[358663442,1745349042021,-500.0,0.00025205,2]
[358663443,1745349042030,-1158.78,0.00025205,2]
[358663444,1745349042040,-900.0,0.0002546,2]
[358663445,1745349042050,-281.923,0.00025478,10]
[358663446,1745349042059,-500.0,0.00025479,2]
[358663447,1745349042069,-2859.58,0.00025479,2]
[358663448,1745349042079,-500.0,0.00025479,2]
[358663449,1745349042088,-1158.78,0.00025479,2]
[358663450,1745349042098,-2660.8,0.00025614,2]
[358663451,1745349042107,-2660.8,0.00025614,2]
[358663452,1745349042117,-2660.8,0.00025614,2]
[358663453,1745349042126,-2660.8,0.00025614,2]
[358663454,1745349042135,-2660.8,0.00025614,2]
[358663455,1745349042145,-2660.8,0.00025614,2]
[358663456,1745349042154,-2660.8,0.00025614,2]
[358663457,1745349042164,-2660.8,0.00025614,2]
[358663458,1745349042174,-2660.8,0.00025614,2]
[358663459,1745349042183,-2660.8,0.00025614,2]
[358663460,1745349042194,-2660.8,0.00025614,2]
[358663461,1745349042204,-2660.8,0.00025614,2]
[358663462,1745349042213,-2660.8,0.00025614,2]
[358663463,1745349042222,-2660.8,0.00025614,2]
[358663464,1745349042232,-2660.8,0.00025614,2]
[358663465,1745349042242,-2660.8,0.00025614,2]
[358663466,1745349042251,-2660.8,0.00025614,2]
[358663467,1745349042260,-2660.8,0.00025614,2]
[358663468,1745349042270,-501.0883213,0.00025629,2]
[358663469,1745349042279,-500.0,0.00025629,2]
[358663470,1745349042289,-501.3528167,0.00025629,2]
[358663471,1745349042298,-500.0,0.00025629,2]
[358663472,1745349042308,-500.0,0.00025629,2]
[358663473,1745349042318,-500.0,0.00025753,2]
[358663474,1745349042328,-2859.58,0.00025753,2]
[358663475,1745349042337,-151.0,0.00025753,7]
[358663476,1745349042347,-500.0,0.00025753,2]
[358663477,1745349042356,-1158.78,0.00025753,2]
[358663478,1745349042366,-151.0,0.00025753,7]
[358663479,1745349042376,-151.0,0.00025753,7]
[358663480,1745349042389,-151.0,0.00025753,7]
[358663481,1745349042399,-151.0,0.00025753,7]
[358663482,1745349042409,-587.0,0.00025884,2]
[358663483,1745349042419,-335.06,0.00026027,2]
[358663484,1745349042430,-2859.58,0.00026027,2]
[358663485,1745349042439,-500.0,0.00026027,2]
[358663486,1745349042450,-1158.78,0.00026027,2]
[358663487,1745349042460,-500.0,0.00026155,2]
[358663488,1745349042471,-500.0,0.00026155,2]
[358663489,1745349042481,-500.0,0.00026155,2]
[358663490,1745349042491,-151.0,0.000262,13]
[358663491,1745349042501,-2859.58,0.00026301,2]
[358663492,1745349042512,-289.36,0.00026301,2]
[358663493,1745349042524,-1158.78,0.00026301,2]
[358663494,1745349042535,-2859.58,0.00026575,2]
[358663495,1745349042547,-1158.78,0.00026575,2]
[358663496,1745349042559,-184.32432727,0.0002661,2]
[358663497,1745349042572,-250.0,0.0002677,2]
[358663498,1745349042583,-2859.58,0.00026849,2]
[358663499,1745349042594,-1158.78,0.00026849,2]
[358663500,1745349042604,-312.898062,0.00027,3]
[358663501,1745349042614,-312.898062,0.00027,3]
[358663502,1745349042625,-151.0,0.000271,12]
[358663503,1745349042635,-1200.0,0.00027104,2]
[358663504,1745349042644,-2859.58,0.00027123,2]
[358663505,1745349042654,-1158.78,0.00027123,2]
[358663507,1745349042665,-2859.58,0.00027397,2]
[358663509,1745349042675,-1158.78,0.00027397,2]
[358663511,1745349042685,-500.0,0.00027397,5]
[358663513,1745349042695,-500.0,0.00027417,5]
[358663515,1745349042705,-153.0,0.00027483,2]
[358663517,1745349042715,-153.0,0.00027483,2]
[358663520,1745349042726,-153.0,0.00027483,2]
[358663522,1745349042736,-153.0,0.00027483,2]
[358663523,1745349042746,-153.0,0.00027483,2]
[358663524,1745349042756,-153.0,0.00027486,2]
[358663525,1745349042766,-153.0,0.00027486,2]
[358663526,1745349042776,-153.0,0.00027486,2]
[358663528,1745349042786,-153.0,0.00027486,2]
[358663530,1745349042797,-153.0,0.00027486,2]
[358663531,1745349042807,-153.0,0.00027486,2]
[358663533,1745349042816,-153.0,0.00027486,2]
[358663535,1745349042826,-153.0,0.00027486,2]
[358663537,1745349042835,-153.0,0.00027486,2]
[358663539,1745349042845,-153.0,0.00027496,2]
[358663541,1745349042854,-153.0,0.00027496,2]
[358663543,1745349042863,-153.0,0.00027496,2]
[358663544,1745349042873,-153.0,0.00027496,2]
[358663545,1745349042883,-153.0,0.00027496,2]
[358663546,1745349042892,-153.0,0.00027498,2]
[358663547,1745349042902,-153.0,0.00027498,2]
[358663548,1745349042911,-153.0,0.00027498,2]
[358663549,1745349042920,-153.0,0.00027498,2]
[358663550,1745349042930,-153.0,0.00027498,2]
[358663551,1745349042939,-153.0,0.00027498,2]
[358663552,1745349042949,-500.0,0.00027525,5]
[358663553,1745349042958,-564.39844344,0.00027525,5]
[358663554,1745349042968,-1000.0,0.00027652,5]
[358663555,1745349042977,-1000.0,0.00027652,5]
[358663557,1745349042986,-639.18897739,0.00027652,5]
[358663559,1745349042996,-505.37046575,0.00027652,5]
[358663561,1745349043007,-1000.0,0.00027652,5]
[358663562,1745349043016,-500.0,0.00027652,5]
[358663563,1745349043026,-1000.0,0.00027652,5]
[358663564,1745349043035,-1000.0,0.00027652,5]
[358663566,1745349043045,-1000.0,0.00027652,5]
[358663567,1745349043055,-1000.0,0.00027652,5]
[358663568,1745349043064,-1000.0,0.00027652,5]
[358663569,1745349043074,-1000.0,0.00027652,5]
[358663570,1745349043083,-1000.0,0.00027652,5]
[358663571,1745349043093,-1000.0,0.00027652,5]
[358663572,1745349043103,-2859.58,0.00027671,2]
[358663573,1745349043113,-1158.78,0.00027671,2]
[358663574,1745349043123,-544.0,0.00027757,2]
[358663575,1745349043133,-403.0,0.00027757,2]
[358663576,1745349043143,-2859.58,0.00027945,2]
[358663577,1745349043153,-1158.78,0.00027945,2]
[358663578,1745349043162,-151.0,0.000281,17]
[358663579,1745349043172,-823.0,0.0002813,2]
[358663580,1745349043181,-2859.77934752,0.00028219,2]
[358663581,1745349043192,-1158.91574707,0.00028219,2]
[358663582,1745349043202,-443.15491915,0.0002844,5]
[358663583,1745349043211,-1000.0,0.0002844,4]
[358663584,1745349043221,-1000.0,0.0002844,2]
[358663585,1745349043231,-1450.66643775,0.00028493,2]
[358663586,1745349043240,-1000.0,0.00028531,2]
[358663587,1745349043249,-323.10638,0.0002858,15]
[358663588,1745349043259,-23093.99659596,0.00028709,2]
[358663589,1745349043269,-1500.0,0.00028748,5]
[358663590,1745349043279,-151.0,0.00029,12]
[358663591,1745349043288,-63518.88737798,0.00029,2]
[358663592,1745349043298,-151.0,0.000299,20]
[358663593,1745349043308,-1073.08,0.0003,2]
[358663594,1745349043318,-211.0,0.0003,2]
[358663595,1745349043328,-268.0,0.0003,2]
[358663596,1745349043338,-2000.0,0.0003,4]
[358663597,1745349043348,-1800.0,0.00030392,5]
[358663598,1745349043358,-1152.0,0.0003057,2]
[358663600,1745349043368,-396.912,0.00030757,2]
[358663602,1745349043377,-500.0,0.00030758,5]
[358663605,1745349043391,-500.0,0.00030824,5]
[358663607,1745349043403,-500.0,0.00030824,5]
[358663609,1745349043412,-151.0,0.000309,13]
[358663611,1745349043423,-2000.0,0.00031,4]
[358663613,1745349043434,-9824.31638376,0.00031062,2]
[358663615,1745349043444,-1000.0,0.00031108,5]
[358663616,1745349043454,-1000.0,0.00031108,5]
[358663617,1745349043463,-539.94163406,0.00031195,5]
[358663618,1745349043474,-500.0,0.00031195,5]
[358663619,1745349043484,-500.0,0.00031195,5]
[358663620,1745349043494,-317.4189324,0.00031534,30]
[358663621,1745349043504,-160.7133882,0.00031534,30]
[358663622,1745349043514,-1162.3668328,0.00031534,30]
[358663623,1745349043523,-1000.0,0.00031634,5]
[358663624,1745349043533,-1018.45647865,0.00031634,5]
[358663625,1745349043542,-1000.0,0.00031634,5]
[358663626,1745349043552,-179718.95444908,0.000317,2]
[358663627,1745349043677,-3153.38152411,0.000317,2]
[358663628,1745349043724,-500.0,0.00021917,2]
[358663629,1745349043735,-19907.19446673,0.000317,2]
[358663630,1745349043746,-8302.8,0.000317,2]
[358663635,1745349046178,-500.0,0.00021917,2]
[358663636,1745349046188,-509.38,0.0002489,3]
[358663637,1745349046199,-1018.76,0.0002626,3]
[358663638,1745349046208,-645.5,0.0002858,15]
[358663639,1745349046219,-558.42344795,0.000317,2]
[358663640,1745349046336,-1030.11001089,0.000317,2]
[358663685,1745350232286,-303.0,0.000209,2]
[358663686,1745350232296,-1355.77254437,0.00021817,2]
[358663687,1745350232307,-300.0,0.00021916,2]
[358663688,1745350232316,-300.0,0.00021916,2]
[358663689,1745350232326,-300.0,0.00021916,2]
[358663690,1745350232336,-500.0,0.00021917,2]
[358663691,1745350232345,-500.0,0.00021917,2]
[358663692,1745350232356,-502.79384369,0.00021917,2]
[358663693,1745350232366,-500.0,0.00021917,2]
[358663694,1745350232375,-500.0,0.00021917,2]
[358663695,1745350232385,-462.06803139,0.00021917,2]
[358663696,1745350232394,-500.0,0.00021917,2]
[358663697,1745350232403,-500.0,0.00021917,2]
[358663698,1745350232413,-500.0,0.00021917,2]
[358663699,1745350232422,-500.0,0.00021917,2]
[358663701,1745350232434,-500.0,0.00021917,2]
[358663703,1745350232444,-500.0,0.00021917,2]
[358663705,1745350232454,-500.0,0.00021917,2]
[358663707,1745350232464,-500.0,0.00021917,2]
[358663708,1745350232474,-500.0,0.00021917,2]
[358663709,1745350232484,-500.0,0.00021917,2]
[358663710,1745350232493,-500.0,0.00021917,2]
[358663711,1745350232503,-500.0,0.00021917,2]
[358663712,1745350232514,-500.0,0.00021917,2]
[358663713,1745350232523,-500.0,0.00021917,2]
[358663714,1745350232533,-500.0,0.00021917,2]
[358663715,1745350232544,-500.0,0.00021917,2]
[358663716,1745350232554,-2051.41,0.00021917,2]
[358663717,1745350232563,-500.0,0.00021917,2]
[358663718,1745350232573,-500.0,0.00021917,2]
[358663719,1745350232582,-500.0,0.00021917,2]
[358663720,1745350232592,-1211.88,0.00021917,2]
[358663721,1745350232602,-500.0,0.00021917,2]
[358663722,1745350232611,-500.0,0.00021917,2]
[358663723,1745350232621,-2740.43,0.00021917,2]
[358663724,1745350232630,-500.0,0.00021917,2]
[358663725,1745350232640,-500.0,0.00021917,2]
[358663726,1745350232649,-486.34626933,0.00021917,2]
[358663727,1745350232659,-500.0,0.00021917,2]
[358663728,1745350232669,-500.0,0.00021917,2]
[358663729,1745350232679,-500.0,0.00021917,2]
[358663730,1745350232689,-500.0,0.00021917,2]
[358663731,1745350232698,-500.0,0.00021917,2]
[358663732,1745350232708,-500.0,0.00021917,2]
[358663733,1745350232718,-500.0,0.00021917,2]
[358663734,1745350232728,-500.0,0.00021917,2]
[358663735,1745350232737,-500.0,0.00021917,2]
[358663736,1745350232747,-500.0,0.00021917,2]
[358663737,1745350232758,-500.0,0.00021917,2]
[358663738,1745350232768,-500.0,0.00021917,2]
[358663739,1745350232778,-500.0,0.00021917,2]
[358663740,1745350232791,-191.5905361,0.00021917,2]
[358663741,1745350232804,-500.0,0.00021917,2]
[358663742,1745350232814,-500.0,0.00021917,2]
[358663743,1745350232824,-500.0,0.00021917,2]
[358663744,1745350232835,-500.0,0.00021917,2]
[358663745,1745350232845,-500.0,0.00021917,2]
[358663746,1745350232855,-500.0,0.00021917,2]
[358663747,1745350232865,-500.0,0.00021917,2]
[358663748,1745350232876,-500.0,0.00021917,2]
[358663749,1745350232886,-500.0,0.00021917,2]
[358663750,1745350232895,-500.0,0.00021917,2]
[358663751,1745350232905,-500.0,0.00021917,2]
[358663752,1745350232915,-500.0,0.00021917,2]
[358663753,1745350232925,-500.0,0.00021917,2]
[358663754,1745350232935,-500.0,0.00021917,2]
[358663755,1745350232945,-500.0,0.00021917,2]
[358663756,1745350232955,-500.0,0.00021917,2]
[358663757,1745350232965,-500.0,0.00021917,2]
[358663758,1745350232974,-500.0,0.00021917,2]
[358663759,1745350232983,-500.0,0.00021917,2]
[358663760,1745350232994,-500.0,0.00021917,2]
[358663761,1745350233004,-500.0,0.00021917,2]
[358663762,1745350233015,-500.0,0.00021917,2]
[358663763,1745350233025,-243.52026561,0.00021917,2]
[358663764,1745350233037,-500.0,0.00021917,2]
[358663765,1745350233048,-500.0,0.00021917,2]
[358663766,1745350233057,-500.0,0.00021917,2]
[358663768,1745350233068,-500.0,0.00021917,2]
[358663769,1745350233078,-500.0,0.00021917,2]
[358663770,1745350233089,-500.0,0.00021917,2]
[358663771,1745350233099,-191.148464,0.00021918,2]
[358663772,1745350233111,-1450.66643777,0.00021976,2]
[358663774,1745350233121,-174.67713093,0.00021977,2]
[358663775,1745350233130,-3296.53,0.00022066,3]
[358663776,1745350233140,-1648.27,0.00022066,3]
[358663777,1745350233150,-824.13,0.00022066,3]
[358663778,1745350233162,-412.07,0.00022066,3]
[358663779,1745350233172,-206.03,0.00022066,3]
[358663780,1745350233183,-618.14,0.00022066,3]
[358663782,1745350233192,-500.0,0.00022073,2]
[358663783,1745350233203,-500.0,0.00022073,2]
[358663784,1745350233213,-182.3357055,0.00022075,2]
[358663785,1745350233223,-500.0,0.00022075,2]
[358663786,1745350233233,-500.0,0.00022075,2]
[358663787,1745350233243,-500.0,0.00022076,2]
[358663788,1745350233255,-500.0,0.00022076,2]
[358663789,1745350233264,-511.30105325,0.00022076,2]
[358663790,1745350233274,-193.14288463,0.00022076,2]
[358663791,1745350233284,-511.30105325,0.00022076,2]
[358663792,1745350233295,-500.0,0.00022076,2]
[358663793,1745350233305,-290.98966425,0.00022076,2]
[358663794,1745350233316,-511.30105325,0.00022076,2]
[358663795,1745350233326,-511.30105325,0.00022076,2]
[358663796,1745350233337,-511.30105325,0.00022076,2]
[358663797,1745350233347,-511.30105325,0.00022076,2]
[358663798,1745350233357,-511.30105325,0.00022076,2]
[358663799,1745350233368,-511.30105325,0.00022076,2]
[358663800,1745350233379,-511.30105325,0.00022076,2]
[358663801,1745350233389,-511.30105325,0.00022076,2]
[358663802,1745350233400,-511.30105325,0.00022076,2]
[358663803,1745350233411,-511.30105325,0.00022076,2]
[358663804,1745350233421,-511.30105325,0.00022076,2]
[358663805,1745350233432,-511.30105325,0.00022076,2]
[358663806,1745350233442,-511.30105325,0.00022076,2]
[358663807,1745350233452,-511.30105325,0.00022076,2]
[358663808,1745350233462,-511.30105325,0.00022076,2]
[358663809,1745350233472,-511.30105325,0.00022076,2]
[358663810,1745350233482,-511.30105325,0.00022076,2]
[358663811,1745350233492,-511.30105325,0.00022076,2]
[358663812,1745350233502,-511.30105325,0.00022076,2]
[358663813,1745350233513,-511.30105325,0.00022076,2]
[358663814,1745350233524,-511.30105325,0.00022076,2]
[358663815,1745350233534,-511.30105325,0.00022076,2]
[358663816,1745350233547,-511.30105325,0.00022076,2]
[358663817,1745350233558,-511.30105325,0.00022076,2]
[358663818,1745350233569,-511.30105325,0.00022076,2]
[358663819,1745350233580,-511.30105325,0.00022076,2]
[358663820,1745350233591,-511.30105325,0.00022076,2]
[358663821,1745350233601,-511.30105325,0.00022076,2]
[358663822,1745350233612,-511.30105325,0.00022076,2]
[358663823,1745350233624,-511.30105325,0.00022076,2]
[358663824,1745350233634,-511.30105325,0.00022076,2]
[358663825,1745350233645,-511.30105325,0.00022076,2]
[358663826,1745350233655,-511.30105325,0.00022076,2]
[358663827,1745350233666,-511.30105325,0.00022076,2]
[358663828,1745350233676,-511.30105325,0.00022076,2]
[358663829,1745350233687,-265.10754802,0.00022076,2]
[358663830,1745350233702,-246.19350523,0.00022076,2]
[358663831,1745350233712,-511.30105325,0.00022076,2]
[358663832,1745350233722,-353.28653489,0.00022076,2]
[358663833,1745350233735,-158.01451836,0.00022076,2]
[358663834,1745350233745,-511.30105325,0.00022076,2]
[358663835,1745350233754,-332.2234212,0.00022076,2]
[358663836,1745350233766,-179.07763205,0.00022076,2]
[358663837,1745350233777,-511.30105325,0.00022076,2]
[358663838,1745350233789,-371.9365922,0.00022076,2]
[358663839,1745350233805,-139.36446105,0.00022076,2]
[358663840,1745350233816,-511.30105325,0.00022076,2]
[358663841,1745350233826,-326.5251732,0.00022076,2]
[358663842,1745350233840,-184.77588005,0.00022076,2]
[358663843,1745350233850,-511.30105325,0.00022076,2]
[358663844,1745350233861,-511.30105325,0.00022076,2]
[358663845,1745350233871,-172.72680484,0.00022076,2]
[358663846,1745350234662,-500.0,0.00022075,2]
[358663847,1745350234673,-421.51350808,0.00022075,2]
[358663848,1745350234685,-78.48649192,0.00022075,2]
[358663849,1745350234696,-329.47991826,0.00022075,2]
[358663850,1745350234708,-170.52008174,0.00022075,2]
[358663851,1745350234718,-544.91651614,0.00022075,2]
[358663852,1745350234728,-511.30105325,0.00022076,2]
[358663853,1745350234739,-511.30105325,0.00022076,2]
[358663854,1745350234749,-511.30105325,0.00022076,2]
[358663855,1745350234759,-511.30105325,0.00022076,2]
[358663856,1745350234769,-511.30105325,0.00022076,2]
[358663857,1745350234779,-511.30105325,0.00022076,2]
[358663858,1745350234791,-511.30105325,0.00022076,2]
[358663859,1745350234913,-511.30105325,0.00022076,2]
[358663860,1745350234950,-511.30105325,0.00022076,2]
[358663861,1745350234961,-1995.90253056,0.00022076,2]
[358663906,1745350238471,-500.0,0.00022075,2]
[358663908,1745350238481,-377.8853904,0.00022075,2]
[358663910,1745350238490,-500.0,0.00022075,2]
[358663912,1745350238500,-500.0,0.00022075,2]
[358663914,1745350238511,-500.0,0.00022083,2]
[358663916,1745350238520,-500.0,0.00022083,2]
[358663918,1745350238530,-500.0,0.00022083,2]
[358663920,1745350238541,-500.0,0.00022083,2]
[358663922,1745350238551,-508.78431858,0.00022083,2]
[358663924,1745350238561,-500.0,0.00022083,2]
[358663926,1745350238571,-500.0,0.00022083,2]
[358663928,1745350238581,-500.0,0.00022083,2]
[358663930,1745350238591,-500.0,0.00022083,2]
[358663932,1745350238600,-505.02602121,0.00022083,2]
[358663934,1745350238610,-500.0,0.00022083,2]
[358663937,1745350238621,-500.0,0.00022083,2]
[358663939,1745350238630,-500.0,0.00022083,2]
[358663941,1745350238640,-518.89403622,0.00022083,2]
[358663943,1745350238650,-510.91112369,0.00022083,2]
[358663945,1745350238659,-500.0,0.00022083,2]
[358663947,1745350238669,-501.2563291,0.00022083,2]
[358663949,1745350238679,-500.0,0.00022083,2]
[358663951,1745350238688,-502.31373735,0.00022083,2]
[358663953,1745350238698,-500.0,0.00022083,2]
[358663955,1745350238708,-647.52603563,0.00022083,2]
[358663957,1745350238717,-334.25633036,0.00022083,2]
[358663959,1745350238727,-500.0,0.00022083,2]
[358663960,1745350238736,-500.0,0.00022083,2]
[358663961,1745350238745,-506.27016928,0.00022083,2]
[358663962,1745350238755,-500.0,0.00022083,2]
[358663963,1745350238765,-556.00305879,0.00022083,2]
[358663964,1745350238775,-500.0,0.00022083,2]
[358663965,1745350238787,-502.64797256,0.00022083,2]
[358663966,1745350238800,-501.77784407,0.00022083,2]
[358663967,1745350238812,-501.63691401,0.00022083,2]
[358663968,1745350238824,-500.0,0.00022083,2]
[358663969,1745350238834,-505.91198158,0.00022083,2]
[358663970,1745350238844,-500.0,0.00022083,2]
[358663971,1745350238853,-500.0,0.00022083,2]
[358663972,1745350238863,-503.47947882,0.00022083,2]
[358663973,1745350238876,-500.0,0.00022083,2]
[358663974,1745350238885,-500.0,0.00022083,2]
[358663975,1745350238894,-500.0,0.00022083,2]
[358663976,1745350238905,-629.66162781,0.00022083,2]
[358663977,1745350238916,-503.02696017,0.00022083,2]
[358663978,1745350238927,-502.36041253,0.00022083,2]
[358663979,1745350238936,-500.0,0.00022083,2]
[358663980,1745350238946,-504.19409519,0.00022083,2]
[358663982,1745350238956,-500.0,0.00022083,2]
[358663984,1745350238966,-500.0,0.00022083,2]
[358663986,1745350238976,-500.0,0.00022083,2]
[358663988,1745350238985,-500.0,0.00022083,2]
[358663990,1745350238995,-500.0,0.00022083,2]
[358663992,1745350239005,-500.89204275,0.00022083,2]
[358663994,1745350239015,-500.0,0.00022083,2]
[358663996,1745350239025,-500.0,0.00022083,2]
[358663998,1745350239035,-516.09209659,0.00022083,2]
[358664000,1745350239046,-500.0,0.00022083,2]
[358664002,1745350239056,-500.0,0.00022083,2]
[358664004,1745350239066,-500.0,0.00022083,2]
[358664006,1745350239075,-500.0,0.00022083,2]
[358664009,1745350239087,-500.0,0.00022083,2]
[358664011,1745350239096,-502.58821979,0.00022083,2]
[358664013,1745350239105,-500.0,0.00022083,2]
[358664015,1745350239114,-500.47103987,0.00022083,2]
[358664017,1745350239124,-500.0,0.00022083,2]
[358664019,1745350239133,-506.65457999,0.00022083,2]
[358664021,1745350239143,-500.0,0.00022083,2]
[358664023,1745350239152,-500.0,0.00022083,2]
[358664025,1745350239162,-501.08013338,0.00022083,2]
[358664027,1745350239172,-500.0,0.00022083,2]
[358664029,1745350239182,-502.22130498,0.00022083,2]
[358664030,1745350239191,-500.0,0.00022083,2]
[358664031,1745350239201,-500.0,0.00022083,2]
[358664032,1745350239211,-500.0,0.00022083,2]
[358664033,1745350239220,-500.0,0.00022083,2]
[358664034,1745350239230,-500.0,0.00022083,2]
[358664035,1745350239240,-500.0,0.00022083,2]
[358664036,1745350239249,-500.0,0.00022083,2]
[358664037,1745350239259,-500.0,0.00022083,2]
[358664038,1745350239269,-500.0,0.00022083,2]
[358664039,1745350239279,-575.50236083,0.00022083,2]
[358664040,1745350239289,-500.0,0.00022083,2]
[358664041,1745350239300,-500.0,0.00022083,2]
[358664043,1745350239310,-500.0,0.00022083,2]
[358664044,1745350239318,-501.05278398,0.00022083,2]
[358664045,1745350239327,-500.0,0.00022083,2]
[358664046,1745350239335,-500.9550273,0.00022083,2]
[358664047,1745350239344,-308.32168639,0.00022083,2]
[358664048,1745350239354,-500.0,0.00022083,2]
[358664049,1745350239364,-370000.0,0.00022084,2]
[358664050,1745350239374,-207.4,0.00022142,2]
[358664051,1745350239384,-151.0,0.00022142,2]
[358664052,1745350239394,-500.0,0.00022191,2]
[358664053,1745350239404,-637.57,0.00022191,2]
[358664054,1745350239414,-541.69,0.00022191,2]
[358664055,1745350239423,-500.0,0.00022191,2]
[358664056,1745350239433,-336.64,0.00022191,2]
[358664057,1745350239443,-534.5,0.00022191,2]
[358664058,1745350239453,-1211.88,0.00022191,2]
[358664059,1745350239463,-500.0,0.00022191,2]
[358664060,1745350239473,-2740.43,0.00022191,2]
[358664061,1745350239483,-500.0,0.00022191,2]
[358664062,1745350239493,-500.0,0.00022191,2]
[358664063,1745350239503,-500.0,0.00022191,2]
[358664064,1745350239513,-500.0,0.00022191,2]
[358664065,1745350239523,-500.0,0.00022191,2]
[358664066,1745350239532,-500.0,0.00022191,2]
[358664067,1745350239543,-500.0,0.00022191,2]
[358664068,1745350239554,-500.0,0.00022191,2]
[358664069,1745350239564,-243.3875988,0.00022191,2]
[358664070,1745350239574,-500.0,0.00022191,2]
[358664071,1745350239583,-500.0,0.00022191,2]
[358664072,1745350239593,-500.0,0.00022191,2]
[358664073,1745350239603,-500.0,0.00022191,2]
[358664074,1745350239612,-500.0,0.00022191,2]
[358664075,1745350239622,-500.0,0.00022191,2]
[358664076,1745350239634,-500.0,0.00022191,2]
[358664077,1745350239643,-500.0,0.00022191,2]
[358664078,1745350239654,-410.8913718,0.00022191,2]
[358664079,1745350239664,-500.0,0.00022191,2]
[358664080,1745350239675,-500.0,0.00022191,2]
[358664081,1745350239685,-500.0,0.00022191,2]
[358664082,1745350239695,-500.0,0.00022191,2]
[358664083,1745350239705,-500.0,0.00022191,2]
[358664084,1745350239715,-246.54599892,0.00022357,2]
[358664085,1745350239725,-583.74,0.00022357,2]
[358664086,1745350239735,-500.0,0.00022464,2]
[358664087,1745350239745,-500.0,0.00022464,2]
[358664088,1745350239755,-500.0,0.00022464,2]
[358664089,1745350239765,-500.0,0.00022465,2]
[358664090,1745350239775,-393.33,0.00022465,2]
[358664091,1745350239785,-1211.88,0.00022465,2]
[358664092,1745350239795,-500.0,0.00022465,2]
[358664093,1745350239809,-2740.43,0.00022465,2]
[358664094,1745350239819,-311.01486503,0.00022465,2]
[358664095,1745350239828,-500.0,0.00022465,2]
[358664096,1745350239839,-500.0,0.00022465,2]
[358664097,1745350239849,-446.37446683,0.00022465,2]
[358664098,1745350239859,-500.0,0.00022465,2]
[358664099,1745350239870,-500.0,0.00022465,2]
[358664100,1745350239882,-500.0,0.00022465,2]
[358664101,1745350239891,-500.0,0.00022465,2]
[358664102,1745350239902,-500.0,0.00022465,2]
[358664103,1745350239912,-500.0,0.00022465,2]
[358664104,1745350239923,-500.0,0.00022465,2]
[358664105,1745350239933,-500.0,0.00022465,2]
[358664106,1745350239943,-9752.19528468,0.00022486,2]
[358664107,1745350239953,-500.0,0.00022638,2]
[358664108,1745350239963,-151.0,0.0002269,2]
[358664109,1745350239973,-500.0,0.00022704,2]
[358664110,1745350239983,-373.37145863,0.0002272,2]
[358664111,1745350239993,-500.0,0.00022727,2]
[358664112,1745350240003,-500.0,0.00022739,2]
[358664114,1745350240013,-1211.88,0.00022739,2]
[358664116,1745350240023,-500.0,0.00022739,2]
[358664118,1745350240034,-2740.43,0.00022739,2]
[358664120,1745350240044,-500.0,0.00022739,2]
[358664122,1745350240056,-500.0,0.00022739,2]
[358664123,1745350240066,-500.0,0.00022739,2]
[358664124,1745350240075,-500.0,0.00022739,2]
[358664125,1745350240085,-364.08,0.00022739,2]
[358664126,1745350240096,-209.44,0.00022739,2]
[358664127,1745350240105,-500.0,0.00022739,2]